fUST/lending_fUST_20250831
["ID","MTS","AMOUNT","RATE_DAILY","PERIOD"]
[382459937,1756635045905,-480.0,0.00018039,2]
[382459939,1756635045914,-674.79,0.00018039,2]
[382459941,1756635045924,-480.0,0.00018039,2]
[382459942,1756635045933,-486.6603232,0.00018039,2]
[382459944,1756635045942,-480.61044114,0.00018039,2]
[382459946,1756635045952,-480.0,0.00018039,2]
[382459948,1756635045961,-502.79,0.00018039,2]
[382459950,1756635045971,-481.38064116,0.00018039,2]
[382459953,1756635045980,-480.0,0.00018039,2]
[382459955,1756635045989,-480.0,0.00018039,2]
[382459957,1756635045998,-151.0,0.00018039,2]
[382459959,1756635046007,-586.76,0.00018039,2]
[382459961,1756635046017,-692.05,0.00018039,2]
[382459963,1756635046026,-480.0,0.00018039,2]
[382459966,1756635046035,-480.0,0.00018039,2]
[382459968,1756635046044,-481.40225443,0.00018039,2]
[382459970,1756635046054,-789.46,0.00018039,2]
[382459972,1756635046063,-480.0,0.00018039,2]
[382459974,1756635046073,-1734.94,0.00018039,2]
[382459976,1756635046085,-480.0,0.00018039,2]
[382459978,1756635046094,-1587.95,0.00018039,2]
[382459981,1756635046103,-480.0,0.00018039,2]
[382459984,1756635046112,-480.0,0.00018039,2]
[382459987,1756635046123,-151.0,0.00018039,2]
[382459990,1756635046132,-480.0,0.00018039,2]
[382459992,1756635046141,-571.52321439,0.00018039,2]
[382459994,1756635046153,-151.0,0.00018039,2]
[382459996,1756635046162,-480.0,0.00018039,2]
[382459998,1756635046171,-596.24306652,0.00018039,2]
[382460000,1756635046179,-514.23,0.00018039,2]
[382460002,1756635046188,-480.0,0.00018039,2]
[382460018,1756635046337,-480.0,0.00018039,2]
[382460020,1756635046348,-1105.26,0.00018039,2]
[382460022,1756635046357,-480.0,0.00018039,2]
[382460024,1756635046367,-480.32440113,0.00018039,2]
[382460026,1756635046376,-480.0,0.00018039,2]
[382460028,1756635046385,-880.48,0.00018039,2]
[382460030,1756635046394,-534.67,0.00018039,2]
[382460032,1756635046403,-480.0,0.00018039,2]
[382460034,1756635046412,-151.0,0.00018039,2]
[382460036,1756635046423,-480.0,0.00018039,2]
[382460038,1756635046432,-480.0,0.00018039,2]
[382460040,1756635046441,-480.0,0.00018039,2]
[382460042,1756635046450,-572.76,0.00018039,2]
[382460044,1756635046459,-151.0,0.00018039,2]
[382460046,1756635046468,-923.92,0.00018039,2]
[382460048,1756635046478,-480.0,0.00018039,2]
[382460050,1756635046487,-480.0,0.00018039,2]
[382460052,1756635046496,-480.0,0.00018039,2]
[382460054,1756635046505,-151.0,0.00018039,2]
[382460056,1756635046514,-480.0,0.00018039,2]
[382460057,1756635046524,-1000.0,0.00018039,2]
[382460059,1756635046533,-480.0,0.00018039,2]
[382460061,1756635046542,-480.0,0.00018039,2]
[382460063,1756635046551,-480.0,0.00018039,2]
[382460065,1756635046560,-480.0,0.00018039,2]
[382460067,1756635046570,-538.7,0.00018039,2]
[382460069,1756635046579,-480.0,0.00018039,2]
[382460071,1756635046589,-571.99,0.00018039,2]
[382460073,1756635046598,-1129.79,0.00018039,2]
[382460075,1756635046607,-500.0,0.00018039,2]
[382460077,1756635046617,-480.0,0.00018039,2]
[382460079,1756635046627,-480.0,0.00018039,2]
[382460081,1756635046637,-480.0,0.00018039,2]
[382460083,1756635046646,-480.0,0.00018039,2]
[382460085,1756635046655,-519.29,0.00018039,2]
[382460087,1756635046664,-480.0,0.00018039,2]
[382460089,1756635046674,-480.0,0.00018039,2]
[382460091,1756635046683,-770.34,0.00018039,2]
[382460093,1756635046692,-480.0,0.00018039,2]
[382460095,1756635046701,-703.32,0.00018039,2]
[382460097,1756635046710,-480.0,0.00018039,2]
[382460099,1756635046719,-480.0,0.00018039,2]
[382460101,1756635046729,-480.0,0.00018039,2]
[382460103,1756635046739,-480.0,0.00018039,2]
[382460105,1756635046748,-151.0,0.00018039,2]
[382460107,1756635046758,-151.0,0.00018039,2]
[382460109,1756635046767,-151.0,0.00018039,2]
[382460112,1756635046777,-151.0,0.00018039,2]
[382460114,1756635046786,-151.0,0.00018039,2]
[382460116,1756635046795,-293.103662,0.00018039,2]
[382460118,1756635046805,-480.0,0.00018039,2]
[382460120,1756635046814,-480.0,0.00018039,2]
[382460122,1756635046823,-503.8,0.00018039,2]
[382460124,1756635046833,-480.0,0.00018039,2]
[382460126,1756635046842,-684.59,0.00018039,2]
[382460128,1756635046851,-480.0,0.00018039,2]
[382460129,1756635046861,-185.876676,0.00018039,2]
[382460131,1756635046870,-500.0,0.00018039,2]
[382460133,1756635046879,-185.876676,0.00018039,2]
[382460135,1756635046888,-185.876676,0.00018039,2]
[382460137,1756635046898,-185.876676,0.00018039,2]
[382460139,1756635046907,-185.876676,0.00018039,2]
[382460141,1756635046917,-185.876676,0.00018039,2]
[382460143,1756635046927,-185.876676,0.00018039,2]
[382460145,1756635046936,-185.876676,0.00018039,2]
[382460147,1756635046946,-1260.41,0.00018039,2]
[382460149,1756635046955,-480.0,0.00018039,2]
[382460151,1756635046964,-480.0,0.00018039,2]
[382460153,1756635046974,-151.55384,0.00018039,2]
[382460155,1756635046983,-153.83075818,0.00018039,2]
[382460157,1756635046993,-480.0,0.00018039,2]
[382460159,1756635047002,-177.82874049,0.00018039,2]
[382460161,1756635047011,-607.24,0.00018039,2]
[382460163,1756635047020,-480.0,0.00018039,2]
[382460165,1756635047030,-156.167908,0.00018039,2]
[382460167,1756635047038,-151.0,0.00018039,2]
[382460169,1756635047047,-1486.16,0.00018039,2]
[382460171,1756635047056,-480.0,0.00018039,2]
[382460173,1756635047065,-480.0,0.00018039,2]
[382460176,1756635047080,-480.0,0.00018039,2]
[382460178,1756635047092,-480.0,0.00018039,2]
[382460180,1756635047103,-184.400329,0.00018039,2]
[382460182,1756635047114,-480.0,0.00018039,2]
[382460183,1756635047125,-480.0,0.00018039,2]
[382460186,1756635047135,-480.0,0.00018039,2]
[382460188,1756635047145,-564.21,0.00018039,2]
[382460190,1756635047158,-480.0,0.00018039,2]
[382460192,1756635047167,-481.08117347,0.00018039,2]
[382460194,1756635047176,-480.81705646,0.00018039,2]
[382460196,1756635047185,-881.51,0.00018039,2]
[382460198,1756635047195,-480.0,0.00018039,2]
[382460200,1756635047204,-836.71,0.00018039,2]
[382460202,1756635047213,-480.0,0.00018039,2]
[382460204,1756635047223,-1173.05,0.00018039,2]
[382460206,1756635047232,-480.0,0.00018039,2]
[382460208,1756635047242,-481.33495109,0.00018039,2]
[382460209,1756635047250,-480.0,0.00018039,2]
[382460210,1756635047259,-585.33,0.00018039,2]
[382460211,1756635047267,-480.0,0.00018039,2]
[382460212,1756635047276,-151.0,0.00018039,2]
[382460213,1756635047286,-151.0,0.00018039,2]
[382460214,1756635047294,-480.0,0.00018039,2]
[382460215,1756635047303,-151.0,0.00018039,2]
[382460216,1756635047313,-151.0,0.00018039,2]
[382460217,1756635047325,-481.29,0.00018039,2]
[382460218,1756635047333,-225.188496,0.00018039,2]
[382460219,1756635047342,-480.0,0.00018039,2]
[382460220,1756635047351,-151.0,0.00018039,2]
[382460221,1756635047360,-151.0,0.00018039,2]
[382460222,1756635047369,-480.66036303,0.00018039,2]
[382460223,1756635047378,-151.0,0.00018039,2]
[382460225,1756635047387,-151.0,0.00018039,2]
[382460227,1756635047396,-572.28,0.00018039,2]
[382460229,1756635047407,-480.0,0.00018039,2]
[382460231,1756635047417,-480.0,0.00018039,2]
[382460233,1756635047427,-480.0,0.00018039,2]
[382460235,1756635047436,-480.0,0.00018039,2]
[382460237,1756635047445,-624.76,0.00018039,2]
[382460239,1756635047455,-480.0,0.00018039,2]
[382460241,1756635047463,-480.0,0.00018039,2]
[382460243,1756635047472,-480.0,0.00018039,2]
[382460245,1756635047482,-518.21017361,0.00018039,2]
[382460246,1756635047491,-480.0,0.00018039,2]
[382460248,1756635047500,-480.0,0.00018039,2]
[382460250,1756635047510,-151.0,0.00018039,2]
[382460252,1756635047520,-581.67,0.00018039,2]
[382460255,1756635047529,-480.0,0.00018039,2]
[382460256,1756635047538,-675.39,0.00018039,2]
[382460258,1756635047549,-966.64,0.00018039,2]
[382460260,1756635047558,-591.58,0.00018039,2]
[382460262,1756635047567,-480.0,0.00018039,2]
[382460265,1756635047577,-481.07907518,0.00018039,2]
[382460266,1756635047587,-481.51570582,0.00018039,2]
[382460268,1756635047596,-480.0,0.00018039,2]
[382460270,1756635047606,-1000.0,0.00018039,2]
[382460272,1756635047617,-481.19134569,0.00018039,2]
[382460274,1756635047626,-480.41918539,0.00018039,2]
[382460276,1756635047635,-480.0,0.00018039,2]
[382460278,1756635047645,-480.0,0.00018039,2]
[382460280,1756635047655,-500.0,0.00018039,2]
[382460282,1756635047664,-480.0,0.00018039,2]
[382460284,1756635047674,-480.0,0.00018039,2]
[382460286,1756635047683,-723.8,0.00018039,2]
[382460288,1756635047693,-424.23151174,0.00018039,2]
[382460290,1756635047702,-480.0,0.00018039,2]
[382460292,1756635047712,-480.0,0.00018039,2]
[382460294,1756635047721,-480.0,0.00018039,2]
[382460296,1756635047731,-480.0,0.00018039,2]
[382460298,1756635047740,-480.0,0.00018039,2]
[382460300,1756635047749,-1696.18,0.00018039,2]
[382460302,1756635047758,-480.0,0.00018039,2]
[382460304,1756635047768,-480.0,0.00018039,2]
[382460306,1756635047777,-480.90901929,0.00018039,2]
[382460308,1756635047785,-480.0,0.00018039,2]
[382460309,1756635047794,-489.6535696,0.00018039,2]
[382460311,1756635047804,-480.77248224,0.00018039,2]
[382460313,1756635047812,-200.0,0.00018039,3]
[382460315,1756635047821,-480.73,0.00018039,2]
[382460317,1756635047830,-200.0,0.00018039,3]
[382460319,1756635047839,-480.0,0.00018039,2]
[382460321,1756635047847,-200.0,0.00018039,3]
[382460323,1756635047858,-200.0,0.00018039,3]
[382460325,1756635047868,-200.0,0.00018039,3]
[382460327,1756635047877,-480.0,0.00018039,2]
[382460329,1756635047887,-480.00000001,0.00018039,2]
[382460331,1756635047897,-659.58,0.00018039,2]
[382460333,1756635047906,-910.94,0.00018039,2]
[382460335,1756635047916,-480.0,0.00018039,2]
[382460337,1756635047925,-480.0,0.00018039,2]
[382460339,1756635047934,-480.0,0.00018039,2]
[382460341,1756635047944,-480.0,0.00018039,2]
[382460343,1756635047953,-1079.7,0.00018039,2]
[382460345,1756635047962,-480.0,0.00018039,2]
[382460347,1756635047971,-480.0,0.00018039,2]
[382460349,1756635047981,-480.0,0.00018039,2]
[382460351,1756635047991,-480.0,0.00018039,2]
[382460353,1756635048001,-303.32377065,0.00018039,2]
[382460355,1756635048010,-484.64387556,0.00018039,2]
[382460357,1756635048019,-480.0,0.00018039,2]
[382460359,1756635048029,-480.0,0.00018039,2]
[382460361,1756635048039,-582.99,0.00018039,2]
[382460363,1756635048048,-480.0,0.00018039,2]
[382460365,1756635048058,-646.84,0.00018039,2]
[382460367,1756635048067,-480.0,0.00018039,2]
[382460369,1756635048078,-481.19532937,0.00018039,2]
[382460371,1756635048089,-480.0,0.00018039,2]
[382460373,1756635048098,-480.0,0.00018039,2]
[382460375,1756635048107,-481.01038569,0.00018039,2]
[382460377,1756635048117,-628.21,0.00018039,2]
[382460379,1756635048127,-628.21,0.00018039,2]
[382460381,1756635048136,-628.21,0.00018039,2]
[382460383,1756635048145,-762.83,0.00018039,2]
[382460384,1756635048155,-480.0,0.00018039,2]
[382460387,1756635048165,-754.46,0.00018039,2]
[382460388,1756635048175,-480.0,0.00018039,2]
[382460390,1756635048185,-642.22,0.00018039,2]
[382460392,1756635048195,-480.0,0.00018039,2]
[382460394,1756635048205,-480.0,0.00018039,2]
[382460396,1756635048215,-921.53,0.00018039,2]
[382460398,1756635048225,-480.0,0.00018039,2]
[382460400,1756635048235,-603.54817478,0.00018039,2]
[382460402,1756635048245,-480.0,0.00018039,2]
[382460404,1756635048254,-620.5,0.00018039,2]
[382460406,1756635048263,-480.0,0.00018039,2]
[382460408,1756635048273,-298.752792,0.00018039,2]
[382460410,1756635048282,-151.0,0.00018039,2]
[382460412,1756635048292,-151.0,0.00018039,2]
[382460414,1756635048301,-151.0,0.00018039,2]
[382460416,1756635048311,-151.0,0.00018039,2]
[382460418,1756635048322,-151.0,0.00018039,2]
[382460420,1756635048332,-151.0,0.00018039,2]
[382460422,1756635048342,-151.0,0.00018039,2]
[382460424,1756635048351,-151.0,0.00018039,2]
[382460426,1756635048361,-151.0,0.00018039,2]
[382460428,1756635048372,-151.0,0.00018039,2]
[382460430,1756635048382,-229.118611,0.00018039,2]
[382460432,1756635048391,-229.118611,0.00018039,2]
[382460434,1756635048402,-229.118611,0.00018039,2]
[382460436,1756635048412,-229.118611,0.00018039,2]
[382460438,1756635048421,-652.143732,0.00018039,2]
[382460440,1756635048431,-151.0,0.0001804,2]
[382460442,1756635048440,-151.0,0.0001804,2]
[382460444,1756635048449,-151.0,0.0001804,2]
[382460446,1756635048459,-500.0,0.0001804,2]
[382460448,1756635048468,-500.0,0.0001804,2]
[382460450,1756635048477,-500.0,0.0001804,2]
[382460452,1756635048486,-500.0,0.0001804,2]
[382460454,1756635048495,-151.123548,0.0001804,2]
[382460455,1756635048505,-188.33928,0.0001804,2]
[382460457,1756635048514,-500.0,0.0001804,2]
[382460459,1756635048524,-500.0,0.0001804,2]
[382460461,1756635048533,-500.0,0.0001804,2]
[382460463,1756635048543,-500.0,0.0001804,2]
[382460466,1756635048553,-628.21,0.0001804,2]
[382460468,1756635048563,-628.21,0.0001804,2]
[382460469,1756635048572,-628.21,0.0001804,2]
[382460471,1756635048581,-628.21,0.0001804,2]
[382460473,1756635048591,-628.21,0.0001804,2]
[382460475,1756635048600,-628.21,0.0001804,2]
[382460478,1756635048610,-628.21,0.0001804,2]
[382460480,1756635048621,-480.0,0.00018041,2]
[382460482,1756635048631,-480.0,0.00018041,2]
[382460484,1756635048641,-500.0,0.00018041,2]
[382460486,1756635048650,-378.14187681,0.00018041,2]
[382460488,1756635048659,-480.0,0.00018041,2]
[382460490,1756635048668,-200.0,0.00018041,2]
[382460492,1756635048678,-151.0,0.00018041,2]
[382460494,1756635048689,-158.27277284,0.00018041,2]
[382460496,1756635048699,-151.0,0.00018041,2]
[382460498,1756635048708,-151.0,0.00018041,2]
[382460499,1756635048718,-480.0,0.00018041,2]
[382460502,1756635048728,-1359.56,0.00018041,2]
[382460503,1756635048738,-500.0,0.00018041,2]
[382460506,1756635048747,-500.0,0.00018041,2]
[382460523,1756635048903,-500.0,0.00018041,2]
[382460525,1756635048914,-500.0,0.00018041,2]
[382460527,1756635048924,-480.0,0.00018041,2]
[382460529,1756635048933,-480.0,0.00018041,2]
[382460531,1756635048943,-480.0,0.00018041,2]
[382460533,1756635048952,-151.0,0.00018041,2]
[382460535,1756635048962,-151.0,0.00018041,2]
[382460537,1756635048971,-580.68,0.00018041,2]
[382460539,1756635048980,-151.0,0.00018041,2]
[382460541,1756635048990,-151.0,0.00018041,2]
[382460543,1756635048999,-480.0,0.00018041,2]
[382460545,1756635049009,-185.876676,0.00018041,2]
[382460547,1756635049018,-185.876676,0.00018041,2]
[382460549,1756635049027,-185.876676,0.00018041,2]
[382460551,1756635049036,-185.876676,0.00018041,2]
[382460553,1756635049045,-185.876676,0.00018041,2]
[382460555,1756635049054,-480.0,0.00018041,2]
[382460557,1756635049063,-185.876676,0.00018041,2]
[382460559,1756635049073,-185.876676,0.00018041,2]
[382460561,1756635049085,-185.87667,0.00018041,2]
[382460563,1756635049095,-505.60382618,0.00018041,2]
[382460565,1756635049104,-501.15,0.00018041,2]
[382460567,1756635049114,-487.95163791,0.00018041,2]
[382460569,1756635049125,-480.0,0.00018041,2]
[382460571,1756635049136,-480.0,0.00018041,2]
[382460573,1756635049146,-715.88,0.00018041,2]
[382460574,1756635049155,-151.0,0.00018041,2]
[382460576,1756635049168,-151.0,0.00018041,2]
[382460579,1756635049179,-151.0,0.00018041,2]
[382460581,1756635049189,-500.0,0.00018041,2]
[382460583,1756635049199,-500.0,0.00018041,2]
[382460585,1756635049209,-482.59720954,0.00018041,2]
[382460587,1756635049219,-628.21,0.00018041,2]
[382460588,1756635049229,-628.21,0.00018041,2]
[382460590,1756635049239,-628.21,0.00018041,2]
[382460592,1756635049248,-193.694951,0.00018042,2]
[382460594,1756635049259,-500.0,0.00018042,2]
[382460596,1756635049268,-500.0,0.00018042,2]
[382460598,1756635049278,-500.0,0.00018042,2]
[382460600,1756635049287,-197.59145903,0.00018042,2]
[382460602,1756635049297,-151.0,0.00018042,2]
[382460604,1756635049306,-628.21,0.00018042,2]
[382460606,1756635049316,-628.21,0.00018042,2]
[382460608,1756635049326,-628.21,0.00018042,2]
[382460609,1756635049335,-628.21,0.00018042,2]
[382460610,1756635049345,-628.21,0.00018042,2]
[382460611,1756635049354,-628.21,0.00018042,2]
[382460612,1756635049364,-628.28109214,0.00018042,2]
[382460613,1756635049374,-168.0,0.00018052,2]
[382460614,1756635049384,-500.4653867,0.00018073,2]
[382460615,1756635049396,-213.6364315,0.00018073,2]
[382460616,1756635049406,-500.0,0.00018073,2]
[382460617,1756635049415,-500.0,0.00018073,2]
[382460618,1756635049425,-500.0,0.00018073,2]
[382460619,1756635049434,-500.0,0.00018073,2]
[382460620,1756635049443,-500.0,0.00018073,2]
[382460621,1756635049453,-500.0,0.00018073,2]
[382460623,1756635049462,-502.15147976,0.00018073,2]
[382460625,1756635049471,-500.0,0.00018073,2]
[382460627,1756635049481,-500.0,0.00018073,2]
[382460629,1756635049490,-501.21878673,0.00018073,2]
[382460631,1756635049501,-608.87160144,0.00018073,2]
[382460633,1756635049509,-373.13586244,0.00018073,2]
[382460635,1756635049518,-500.0,0.00018073,2]
[382460637,1756635049527,-500.0,0.00018073,2]
[382460639,1756635049537,-500.0,0.00018073,2]
[382460641,1756635049546,-500.0,0.00018073,2]
[382460643,1756635049555,-500.0,0.00018073,2]
[382460645,1756635049564,-500.0,0.00018073,2]
[382460647,1756635049573,-500.0,0.00018073,2]
[382460648,1756635049583,-250.94392622,0.00018073,2]
[382460650,1756635049592,-473.37987099,0.00018073,2]
[382460652,1756635049601,-500.0,0.00018073,2]
[382460654,1756635049610,-500.0,0.00018073,2]
[382460656,1756635049620,-500.0,0.00018073,2]
[382460658,1756635049630,-500.0,0.00018073,2]
[382460660,1756635049639,-500.0,0.00018073,2]
[382460662,1756635049648,-500.0,0.00018073,2]
[382460664,1756635049658,-500.0,0.00018073,2]
[382460666,1756635049667,-500.97484638,0.00018073,2]
[382460668,1756635049676,-500.0,0.00018073,2]
[382460670,1756635049686,-500.0,0.00018073,2]
[382460673,1756635049695,-500.0,0.00018073,2]
[382460674,1756635049705,-501.94205107,0.00018073,2]
[382460676,1756635049715,-519.97580936,0.00018073,2]
[382460679,1756635049725,-501.4016472,0.00018073,2]
[382460681,1756635049735,-213.79428328,0.00018073,2]
[382460683,1756635049744,-500.0,0.00018073,2]
[382460685,1756635049753,-257.0,0.00018075,2]
[382460687,1756635049763,-341.9881509,0.00018082,2]
[382460689,1756635049771,-2919.75940895,0.00018086,2]
[382460691,1756635049781,-1204.85297721,0.00018141,2]
[382460693,1756635049791,-281.154866,0.00018142,2]
[382460695,1756635049802,-5000.0,0.00018172,2]
[382460697,1756635049812,-168.0,0.00018176,2]
[382460699,1756635049821,-40269.2028119,0.00018184,2]
[382460701,1756635049830,-397.0,0.00018184,2]
[382460703,1756635049839,-397.0,0.00018185,2]
[382460705,1756635049848,-393.0,0.00018197,2]
[382460707,1756635049857,-151.0,0.000182,2]
[382460709,1756635049866,-500.0,0.00018205,2]
[382460711,1756635049876,-1379.38,0.00018205,2]
[382460713,1756635049885,-1706.45,0.00018205,2]
[382460715,1756635049895,-480.0,0.00018205,2]
[382460717,1756635049903,-480.0,0.00018205,2]
[382460719,1756635049912,-1737.26,0.00018205,2]
[382460721,1756635049921,-2211.65,0.00018205,2]
[382460723,1756635049931,-1197.39,0.00018205,2]
[382460725,1756635049940,-794.25,0.00018205,2]
[382460727,1756635049949,-548.92,0.00018205,2]
[382460729,1756635049958,-480.0,0.00018205,2]
[382460731,1756635049967,-1690.84,0.00018205,2]
[382460733,1756635049976,-480.0,0.00018205,2]
[382460735,1756635049986,-7086.94,0.00018205,2]
[382460737,1756635049995,-571.71987851,0.00018205,2]
[382460739,1756635050005,-1300.6,0.00018205,2]
[382460741,1756635050014,-1279.17,0.00018205,2]
[382460743,1756635050023,-480.0,0.00018205,2]
[382460745,1756635050032,-881.24,0.00018205,2]
[382460747,1756635050041,-674.97,0.00018205,2]
[382460749,1756635050050,-480.0,0.00018205,2]
[382460751,1756635050060,-480.0,0.00018205,2]
[382460753,1756635050069,-3353.37,0.00018205,2]
[382460754,1756635050079,-3399.83,0.00018205,2]
[382460757,1756635050093,-480.0,0.00018205,2]
[382460759,1756635050104,-480.0,0.00018205,2]
[382460761,1756635050113,-480.0,0.00018205,2]
[382460763,1756635050123,-1226.37,0.00018205,2]
[382460765,1756635050133,-1561.38,0.00018205,2]
[382460767,1756635050142,-1456.6,0.00018205,2]
[382460769,1756635050151,-2400.85,0.00018205,2]
[382460771,1756635050160,-1903.29,0.00018205,2]
[382460773,1756635050170,-480.0,0.00018205,2]
[382460775,1756635050179,-480.0,0.00018205,2]
[382460777,1756635050189,-1430.48,0.00018205,2]
[382460778,1756635050198,-1499.92,0.00018205,2]
[382460779,1756635050207,-495.74,0.00018205,2]
[382460780,1756635050216,-1914.87,0.00018205,2]
[382460781,1756635050226,-1104.08,0.00018205,2]
[382460782,1756635050235,-735.09,0.00018205,2]
[382460783,1756635050244,-979.56,0.00018205,2]
[382460784,1756635050254,-480.0,0.00018205,2]
[382460785,1756635050263,-480.0,0.00018205,2]
[382460786,1756635050272,-13289.1467584,0.00018206,2]
[382460787,1756635050282,-290.70175368,0.00018242,2]
[382460788,1756635050291,-168.0,0.00018246,2]
[382460789,1756635050303,-4860.9406656,0.00018254,2]
[382460790,1756635050314,-163.597191,0.00018255,15]
[382460791,1756635050323,-5000.0,0.00018271,2]
[382460792,1756635050333,-24421.68313083,0.00018304,2]
[382460793,1756635050346,-151.0,0.00018304,2]
[382460794,1756635050355,-500.0,0.00018304,2]
[382460795,1756635050365,-500.0,0.00018304,2]
[382460796,1756635050377,-151.0,0.00018304,2]
[382460797,1756635050386,-1542.0,0.00018304,2]
[382460798,1756635050395,-500.0,0.00018304,2]
[382460799,1756635050404,-500.0,0.00018304,2]
[382460800,1756635050416,-500.0,0.00018304,2]
[382460801,1756635050428,-766.82,0.00018304,2]
[382460802,1756635050438,-1723.35,0.00018304,2]
[382460803,1756635050447,-480.0,0.00018304,2]
[382460804,1756635050456,-480.0,0.00018304,2]
[382460805,1756635050467,-480.0,0.00018304,2]
[382460806,1756635050476,-480.0,0.00018304,2]
[382460807,1756635050486,-480.0,0.00018304,2]
[382460808,1756635050495,-478.23809356,0.00018304,2]
[382460809,1756635050505,-483.00033591,0.00018304,2]
[382460810,1756635050514,-480.0,0.00018304,2]
[382460811,1756635050524,-480.0,0.00018304,2]
[382460812,1756635050534,-592.33,0.00018304,2]
[382460813,1756635050543,-573.16,0.00018304,2]
[382460815,1756635050552,-480.0,0.00018304,2]
[382460816,1756635050562,-480.0,0.00018304,2]
[382460817,1756635050571,-480.95599647,0.00018304,2]
[382460818,1756635050581,-621.13,0.00018304,2]
[382460819,1756635050591,-480.0,0.00018304,2]
[382460820,1756635050600,-717.78,0.00018304,2]
[382460822,1756635050610,-993.08,0.00018304,2]
[382460823,1756635050621,-481.90214128,0.00018304,2]
[382460824,1756635050631,-610.75,0.00018304,2]
[382460825,1756635050642,-571.78,0.00018304,2]
[382460826,1756635050652,-480.0,0.00018304,2]
[382460827,1756635050662,-480.0,0.00018304,2]
[382460828,1756635050672,-480.0,0.00018304,2]
[382460829,1756635050681,-2958.25,0.00018304,2]
[382460830,1756635050691,-480.0,0.00018304,2]
[382460831,1756635050701,-480.0,0.00018304,2]
[382460832,1756635050711,-480.0,0.00018304,2]
[382460833,1756635050721,-871.94,0.00018304,2]
[382460834,1756635050731,-480.0,0.00018304,2]
[382460835,1756635050741,-480.0,0.00018304,2]
[382460836,1756635050751,-497.59,0.00018304,2]
[382460837,1756635050760,-1194.25,0.00018304,2]
[382460838,1756635050769,-1394.93,0.00018304,2]
[382460839,1756635050779,-480.0,0.00018304,2]
[382460840,1756635050788,-548.83,0.00018304,2]
[382460841,1756635050798,-480.0,0.00018304,2]
[382460842,1756635050807,-518.63693586,0.00018304,2]
[382460843,1756635050816,-437.20846435,0.00018304,2]
[382460844,1756635050826,-480.0,0.00018304,2]
[382460845,1756635050835,-1808.67,0.00018304,2]
[382460846,1756635050845,-1032.15,0.00018304,2]
[382460847,1756635050854,-480.0,0.00018304,2]
[382460848,1756635050863,-480.0,0.00018304,2]
[382460849,1756635050873,-480.0,0.00018304,2]
[382460850,1756635050883,-480.0,0.00018304,2]
[382460851,1756635050893,-480.0,0.00018304,2]
[382460852,1756635050902,-1881.37,0.00018304,2]
[382460853,1756635050912,-480.0,0.00018304,2]
[382460854,1756635050921,-1480.97,0.00018304,2]
[382460855,1756635050930,-482.35,0.00018304,2]
[382460856,1756635050940,-480.0,0.00018304,2]
[382460857,1756635050949,-480.0,0.00018304,2]
[382460858,1756635050959,-997.06,0.00018304,2]
[382460859,1756635050968,-236.93270534,0.00018304,2]